fUSD/lending_fUSD_20240501
["ID","MTS","AMOUNT","RATE_DAILY","PERIOD"]
[325147166,1714539092081,-500.0,0.00012328,2]
[325147167,1714539092091,-500.0,0.00012328,2]
[325147168,1714539092100,-500.0,0.00012328,2]
[325147169,1714539092110,-509.61734853,0.00012328,2]
[325147170,1714539092120,-500.0,0.00012328,2]
[325147171,1714539092129,-500.0,0.00012328,2]
[325147172,1714539092138,-500.0,0.00012328,2]
[325147173,1714539092147,-500.0,0.00012328,2]
[325147174,1714539092158,-500.0,0.00012328,2]
[325147175,1714539092168,-500.0,0.00012328,2]
[325147176,1714539092183,-500.0,0.00012328,2]
[325147177,1714539092193,-500.0,0.00012328,2]
[325147178,1714539092203,-500.0,0.00012328,2]
[325147179,1714539092213,-2461.67,0.00012328,2]
[325147180,1714539092223,-500.0,0.00012328,2]
[325147181,1714539092233,-500.0,0.00012328,2]
[325147182,1714539092242,-500.0,0.00012328,2]
[325147183,1714539092255,-926.91,0.00012328,2]
[325147184,1714539092265,-500.0,0.00012328,2]
[325147185,1714539092274,-1347.73,0.00012328,2]
[325147186,1714539092284,-500.0,0.00012328,2]
[325147187,1714539092293,-500.0,0.00012328,2]
[325147188,1714539092303,-500.0,0.00012328,2]
[325147189,1714539092722,-500.0,0.00012328,2]
[325147190,1714539092743,-187.38211392,0.00012328,2]
[325147191,1714539092765,-9581.25,0.00012328,2]
[325147192,1714539092783,-500.0,0.00012328,2]
[325147193,1714539092793,-500.0,0.00012328,2]
[325147194,1714539092802,-500.0,0.00012328,2]
[325147195,1714539092812,-1342.08,0.00012328,2]
[325147196,1714539092822,-587.46,0.00012328,2]
[325147197,1714539092832,-500.0,0.00012328,2]
[325147198,1714539092841,-500.0,0.00012328,2]
[325147199,1714539092851,-500.0,0.00012328,2]
[325147200,1714539092860,-500.0,0.00012328,2]
[325147201,1714539092871,-500.0,0.00012328,2]
[325147202,1714539092880,-500.0,0.00012328,2]
[325147203,1714539092889,-500.0,0.00012328,2]
[325147204,1714539092898,-500.0,0.00012328,2]
[325147205,1714539092908,-713.05,0.00012328,2]
[325147206,1714539092918,-500.0,0.00012328,2]
[325147207,1714539092927,-500.0,0.00012328,2]
[325147208,1714539092937,-500.0,0.00012328,2]
[325147209,1714539092946,-543.83,0.00012328,2]
[325147210,1714539092955,-500.0,0.00012328,2]
[325147211,1714539092964,-793.24,0.00012328,2]
[325147212,1714539092974,-743.33,0.00012328,2]
[325147213,1714539092984,-500.0,0.00012328,2]
[325147214,1714539092993,-500.0,0.00012328,2]
[325147215,1714539093003,-843.66,0.00012328,2]
[325147216,1714539093013,-500.0,0.00012328,2]
[325147217,1714539093023,-513.0236926,0.00012328,2]
[325147218,1714539093034,-500.0,0.00012328,2]
[325147219,1714539093045,-500.0,0.00012328,2]
[325147220,1714539093055,-500.0,0.00012328,2]
[325147221,1714539093065,-1583.74,0.00012328,2]
[325147222,1714539093076,-747.89,0.00012328,2]
[325147223,1714539093087,-500.0,0.00012328,2]
[325147224,1714539093097,-500.0,0.00012328,2]
[325147225,1714539093107,-685.35,0.00012328,2]
[325147226,1714539093118,-500.0,0.00012328,2]
[325147227,1714539093127,-519.15023859,0.00012328,2]
[325147228,1714539093138,-500.0,0.00012328,2]
[325147229,1714539093148,-2030.36,0.00012328,2]
[325147230,1714539093158,-500.0,0.00012328,2]
[325147231,1714539093168,-4237.49,0.00012328,2]
[325147232,1714539093180,-500.0,0.00012328,2]
[325147233,1714539093190,-995.71,0.00012328,2]
[325147234,1714539093199,-500.0,0.00012328,2]
[325147235,1714539093208,-788.88,0.00012328,2]
[325147236,1714539093219,-500.0,0.00012328,2]
[325147237,1714539093228,-701.94,0.00012328,2]
[325147238,1714539093237,-500.0,0.00012328,2]
[325147239,1714539093246,-500.0,0.00012328,2]
[325147240,1714539093257,-500.0,0.00012328,2]
[325147241,1714539093267,-500.0,0.00012328,2]
[325147242,1714539093277,-10385.2,0.00012328,2]
[325147243,1714539093286,-524.67,0.00012328,2]
[325147244,1714539093295,-500.0,0.00012328,2]
[325147245,1714539093305,-500.0,0.00012328,2]
[325147246,1714539093314,-1137.24,0.00012328,2]
[325147247,1714539093323,-500.0,0.00012328,2]
[325147248,1714539093332,-1318.2,0.00012328,2]
[325147249,1714539093341,-851.6,0.00012328,2]
[325147250,1714539093350,-500.0,0.00012328,2]
[325147251,1714539093360,-500.0,0.00012328,2]
[325147252,1714539093370,-500.0,0.00012328,2]
[325147253,1714539093380,-500.0,0.00012328,2]
[325147254,1714539093390,-593.68,0.00012328,2]
[325147255,1714539093399,-500.0,0.00012328,2]
[325147256,1714539093408,-500.0,0.00012328,2]
[325147257,1714539093417,-2573.1,0.00012328,2]
[325147258,1714539093426,-500.0,0.00012328,2]
[325147259,1714539093436,-1657.89,0.00012328,2]
[325147260,1714539093446,-500.0,0.00012328,2]
[325147261,1714539093455,-606.86321602,0.00012328,2]
[325147262,1714539093464,-500.0,0.00012328,2]
[325147263,1714539093473,-500.0,0.00012328,2]
[325147264,1714539093483,-500.0,0.00012328,2]
[325147265,1714539093492,-504.65741882,0.00012328,2]
[325147266,1714539093502,-500.0,0.00012328,2]
[325147267,1714539093511,-539.26,0.00012328,2]
[325147268,1714539093520,-1468.47,0.00012328,2]
[325147269,1714539093530,-4116.96,0.00012328,2]
[325147270,1714539093539,-500.0,0.00012328,2]
[325147271,1714539093548,-155.91605344,0.00012328,2]
[325147272,1714539093557,-709.49,0.00012328,2]
[325147273,1714539093566,-500.0,0.00012328,2]
[325147274,1714539093575,-500.0,0.00012328,2]
[325147275,1714539093585,-500.0,0.00012328,2]
[325147276,1714539093594,-500.0,0.00012328,2]
[325147277,1714539093604,-379.72443612,0.00012328,2]
[325147278,1714539093613,-500.0,0.00012328,2]
[325147279,1714539093622,-500.0,0.00012328,2]
[325147280,1714539093632,-500.0,0.00012328,2]
[325147281,1714539093641,-500.0,0.00012328,2]
[325147282,1714539093650,-500.0,0.00012328,2]
[325147283,1714539093660,-548.53370326,0.00012328,2]
[325147284,1714539093669,-500.0,0.00012328,2]
[325147285,1714539093678,-500.0,0.00012328,2]
[325147286,1714539093688,-500.0,0.00012328,2]
[325147287,1714539093696,-238.99623243,0.00012328,2]
[325147288,1714539093705,-500.0,0.00012328,2]
[325147289,1714539093714,-781.67,0.00012328,2]
[325147290,1714539093723,-500.0,0.00012328,2]
[325147291,1714539093732,-500.0,0.00012328,2]
[325147292,1714539093741,-827.2,0.00012328,2]
[325147293,1714539093751,-241.65157816,0.00012328,2]
[325147294,1714539093760,-557.78,0.00012328,2]
[325147295,1714539093769,-500.0,0.00012328,2]
[325147296,1714539093778,-500.0,0.00012328,2]
[325147297,1714539093787,-500.0,0.00012328,2]
[325147298,1714539093796,-500.0,0.00012328,2]
[325147299,1714539093806,-518.82,0.00012328,2]
[325147300,1714539093815,-500.0,0.00012328,2]
[325147301,1714539093824,-500.0,0.00012328,2]
[325147302,1714539093833,-500.0,0.00012328,2]
[325147303,1714539093842,-500.0,0.00012328,2]
[325147304,1714539093851,-500.0,0.00012328,2]
[325147305,1714539093860,-500.0,0.00012328,2]
[325147306,1714539093870,-6572.96,0.00012328,2]
[325147307,1714539093879,-500.0,0.00012328,2]
[325147308,1714539093887,-500.0,0.00012328,2]
[325147309,1714539093897,-500.0,0.00012328,2]
[325147310,1714539093906,-500.0,0.00012328,2]
[325147311,1714539093916,-2184.77,0.00012328,2]
[325147312,1714539093926,-876.65,0.00012328,2]
[325147313,1714539093936,-500.0,0.00012328,2]
[325147314,1714539093946,-500.0,0.00012328,2]
[325147315,1714539093956,-885.51,0.00012328,2]
[325147316,1714539093965,-2195.46,0.00012328,2]
[325147317,1714539093975,-500.0,0.00012328,2]
[325147318,1714539093984,-500.0,0.00012328,2]
[325147319,1714539093993,-500.0,0.00012328,2]
[325147320,1714539094003,-500.0,0.00012328,2]
[325147321,1714539094013,-500.0,0.00012328,2]
[325147322,1714539094022,-500.0,0.00012328,2]
[325147323,1714539094032,-983.52,0.00012328,2]
[325147324,1714539094041,-500.0,0.00012328,2]
[325147325,1714539094050,-1056.57,0.00012328,2]
[325147326,1714539094059,-573.9,0.00012328,2]
[325147327,1714539094069,-1366.95,0.00012328,2]
[325147328,1714539094078,-500.0,0.00012328,2]
[325147329,1714539094087,-500.0,0.00012328,2]
[325147330,1714539094096,-500.0,0.00012328,2]
[325147331,1714539094105,-500.0,0.00012328,2]
[325147332,1714539094115,-1450.24,0.00012328,2]
[325147333,1714539094124,-500.0,0.00012328,2]
[325147334,1714539094134,-1583.84,0.00012328,2]
[325147335,1714539094144,-500.0,0.00012328,2]
[325147336,1714539094153,-500.0,0.00012328,2]
[325147337,1714539094164,-3095.78,0.00012328,2]
[325147338,1714539094179,-500.0,0.00012328,2]
[325147339,1714539094188,-303.83008597,0.00012328,2]
[325147340,1714539094197,-1522.74,0.00012328,2]
[325147341,1714539094207,-500.0,0.00012328,2]
[325147342,1714539094220,-500.0,0.00012328,2]
[325147343,1714539094230,-4304.42,0.00012328,2]
[325147344,1714539094239,-500.0,0.00012328,2]
[325147345,1714539094250,-500.0,0.00012328,2]
[325147346,1714539094260,-1283.53,0.00012328,2]
[325147347,1714539094270,-555.58826619,0.00012328,2]
[325147348,1714539094279,-518.15,0.00012328,2]
[325147349,1714539094289,-500.0,0.00012328,2]
[325147350,1714539094299,-1524.5,0.00012328,2]
[325147351,1714539094309,-500.0,0.00012328,2]
[325147352,1714539094318,-500.0,0.00012328,2]
[325147353,1714539094328,-260.79181357,0.00012328,2]
[325147354,1714539094338,-926.44,0.00012328,2]
[325147355,1714539094347,-3114.12,0.00012328,2]
[325147356,1714539094357,-858.81,0.00012328,2]
[325147357,1714539094367,-500.0,0.00012328,2]
[325147358,1714539094376,-554.80601375,0.00012328,2]
[325147359,1714539094386,-500.0,0.00012328,2]
[325147360,1714539094395,-1103.54,0.00012328,2]
[325147361,1714539094405,-500.0,0.00012328,2]
[325147362,1714539094417,-500.0,0.00012328,2]
[325147363,1714539094426,-4158.01,0.00012328,2]
[325147364,1714539094435,-500.0,0.00012328,2]
[325147365,1714539094444,-500.0,0.00012328,2]
[325147366,1714539094454,-500.0,0.00012328,2]
[325147367,1714539094463,-500.0,0.00012328,2]
[325147368,1714539094472,-500.0,0.00012328,2]
[325147369,1714539094481,-500.0,0.00012328,2]
[325147370,1714539094490,-500.0,0.00012328,2]
[325147371,1714539094499,-1216.37,0.00012328,2]
[325147372,1714539094508,-1996.83,0.00012328,2]
[325147373,1714539094517,-151.0,0.00012328,2]
[325147374,1714539094526,-500.0,0.00012328,2]
[325147375,1714539094535,-4065.53,0.00012328,2]
[325147376,1714539094544,-500.0,0.00012328,2]
[325147377,1714539094553,-500.0,0.00012328,2]
[325147378,1714539094562,-3984.81,0.00012328,2]
[325147379,1714539094571,-986.56,0.00012328,2]
[325147380,1714539094581,-551.52314383,0.00012328,2]
[325147381,1714539094589,-500.0,0.00012328,2]
[325147382,1714539094599,-500.0,0.00012328,2]
[325147383,1714539094607,-500.0,0.00012328,2]
[325147384,1714539094616,-2243.06,0.00012328,2]
[325147385,1714539094626,-500.0,0.00012328,2]
[325147386,1714539094635,-12714.47,0.00012328,2]
[325147387,1714539094644,-500.0,0.00012328,2]
[325147388,1714539094654,-1172.53,0.00012328,2]
[325147389,1714539094665,-425.82916729,0.00012328,2]
[325147390,1714539094674,-1620.6,0.00012328,2]
[325147391,1714539094684,-531.76,0.00012328,2]
[325147392,1714539094693,-500.0,0.00012328,2]
[325147393,1714539094703,-2001.05,0.00012328,2]
[325147394,1714539094713,-579.57,0.00012328,2]
[325147395,1714539094722,-412.63123062,0.00012328,2]
[325147396,1714539094732,-500.0,0.00012328,2]
[325147397,1714539094741,-500.0,0.00012328,2]
[325147398,1714539094752,-500.0,0.00012328,2]
[325147399,1714539094764,-500.0,0.00012328,2]
[325147400,1714539094775,-500.0,0.00012328,2]
[325147401,1714539094785,-500.0,0.00012328,2]
[325147402,1714539094796,-574.35,0.00012328,2]
[325147403,1714539094807,-500.0,0.00012328,2]
[325147404,1714539094817,-389.79720223,0.00012328,2]
[325147405,1714539094827,-759.38,0.00012328,2]
[325147406,1714539094837,-1387.46,0.00012328,2]
[325147407,1714539094847,-151.0,0.00012328,2]
[325147408,1714539094856,-1783.2,0.00012328,2]
[325147409,1714539094866,-554.94336792,0.00012328,2]
[325147410,1714539094876,-500.0,0.00012328,2]
[325147411,1714539094886,-500.0,0.00012328,2]
[325147412,1714539094896,-500.0,0.00012328,2]
[325147413,1714539094905,-500.0,0.00012328,2]
[325147414,1714539094917,-151.0,0.00012328,2]
[325147415,1714539094926,-500.0,0.00012328,2]
[325147416,1714539094935,-500.0,0.00012328,2]
[325147417,1714539094945,-500.0,0.00012328,2]
[325147418,1714539094955,-500.0,0.00012328,2]
[325147419,1714539094965,-500.0,0.00012328,2]
[325147420,1714539094975,-895.12,0.00012328,2]
[325147421,1714539094984,-893.23,0.00012328,2]
[325147422,1714539094994,-5844.28,0.00012328,2]
[325147423,1714539095003,-1482.64,0.00012328,2]
[325147424,1714539095013,-500.0,0.00012328,2]
[325147425,1714539095022,-529.89,0.00012328,2]
[325147426,1714539095031,-500.0,0.00012328,2]
[325147427,1714539095041,-500.0,0.00012328,2]
[325147428,1714539095051,-1431.48,0.00012328,2]
[325147429,1714539095061,-500.0,0.00012328,2]
[325147430,1714539095072,-14099.2,0.00012328,2]
[325147431,1714539095082,-500.0,0.00012328,2]
[325147432,1714539095092,-500.0,0.00012328,2]
[325147433,1714539095102,-150.0,0.00012331,2]
[325147434,1714539095112,-500.0,0.00012372,2]
[325147435,1714539095122,-505.65502619,0.00012372,2]
[325147436,1714539095131,-500.0,0.00012372,2]
[325147437,1714539095141,-513.66260438,0.00012372,2]
[325147438,1714539095151,-500.0,0.00012372,2]
[325147439,1714539095161,-500.0,0.00012372,2]
[325147440,1714539095176,-500.0,0.00012372,2]
[325147441,1714539095185,-500.0,0.00012372,2]
[325147442,1714539095195,-500.0,0.00012372,2]
[325147443,1714539095205,-500.0,0.00012372,2]
[325147444,1714539095216,-636.78245956,0.00012372,2]
[325147445,1714539095225,-500.0,0.00012372,2]
[325147446,1714539095235,-500.0,0.00012372,2]
[325147447,1714539095244,-500.0,0.00012372,2]
[325147448,1714539095254,-500.0,0.00012372,2]
[325147449,1714539095264,-518.09139704,0.00012372,2]
[325147450,1714539095273,-500.0,0.00012372,2]
[325147451,1714539095283,-756.91,0.00012372,2]
[325147452,1714539095292,-505.34693173,0.00012372,2]
[325147453,1714539095301,-500.0,0.00012372,2]
[325147454,1714539095311,-500.0,0.00012372,2]
[325147455,1714539095321,-500.0,0.00012372,2]
[325147456,1714539095331,-500.0,0.00012372,2]
[325147457,1714539095341,-500.0,0.00012372,2]
[325147458,1714539095352,-500.0,0.00012372,2]
[325147459,1714539095361,-500.0,0.00012372,2]
[325147460,1714539095372,-500.0,0.00012372,2]
[325147461,1714539095382,-500.0,0.00012372,2]
[325147462,1714539095392,-500.0,0.00012372,2]
[325147463,1714539095402,-500.0,0.00012372,2]
[325147464,1714539095413,-514.20282439,0.00012372,2]
[325147465,1714539095424,-500.0,0.00012372,2]
[325147466,1714539095435,-500.0,0.00012372,2]
[325147467,1714539095445,-500.0,0.00012372,2]
[325147468,1714539095455,-500.0,0.00012372,2]
[325147469,1714539095465,-500.0,0.00012372,2]
[325147470,1714539095475,-500.0,0.00012372,2]
[325147471,1714539095486,-500.0,0.00012372,2]
[325147472,1714539095496,-500.0,0.00012372,2]
[325147473,1714539095506,-500.0,0.00012372,2]
[325147474,1714539095516,-500.0,0.00012372,2]
[325147475,1714539095527,-500.0,0.00012372,2]
[325147476,1714539095536,-500.0,0.00012372,2]
[325147477,1714539095546,-500.0,0.00012372,2]
[325147478,1714539095556,-500.0,0.00012372,2]
[325147479,1714539095566,-500.0,0.00012372,2]
[325147480,1714539095576,-500.0,0.00012372,2]
[325147481,1714539095585,-500.0,0.00012372,2]
[325147482,1714539095595,-500.0,0.00012372,2]
[325147483,1714539095605,-500.0,0.00012372,2]
[325147484,1714539095615,-500.0,0.00012372,2]
[325147485,1714539095625,-500.0,0.00012372,2]
[325147486,1714539095634,-500.0,0.00012372,2]
[325147487,1714539095644,-500.0,0.00012372,2]
[325147488,1714539095653,-500.0,0.00012372,2]
[325147489,1714539095667,-500.0,0.00012372,2]
[325147490,1714539095677,-500.0,0.00012372,2]
[325147491,1714539095687,-500.0,0.00012372,2]
[325147492,1714539095697,-500.0,0.00012372,2]
[325147493,1714539095706,-500.0,0.00012372,2]
[325147494,1714539095716,-500.0,0.00012372,2]
[325147495,1714539095726,-500.0,0.00012372,2]
[325147496,1714539095736,-151.0,0.00012372,2]
[325147497,1714539095745,-289.673398,0.00012372,2]
[325147498,1714539095755,-468.852764,0.00012372,2]
[325147499,1714539095765,-151.0,0.00012372,2]
[325147500,1714539095776,-468.852764,0.00012372,2]
[325147501,1714539095786,-300.0,0.000124,4]
[325147502,1714539095796,-151.0,0.000124,2]
[325147503,1714539095806,-723.127736,0.000124,2]
[325147504,1714539095816,-723.127736,0.000124,2]
[325147505,1714539095826,-10000.0,0.000124,2]
[325147506,1714539095837,-151.0,0.000124,2]
[325147507,1714539095847,-10000.0,0.000124,2]
[325147508,1714539095856,-151.0,0.000124,2]
[325147509,1714539095866,-10000.0,0.000124,2]
[325147510,1714539095876,-162.584186,0.000124,2]
[325147511,1714539095886,-162.584186,0.000124,2]
[325147512,1714539095896,-151.0,0.000124,2]
[325147513,1714539095906,-286.590977,0.000124,2]
[325147514,1714539096082,-463.573,0.000124,2]
[325147515,1714539096093,-1398.818,0.000124,2]
[325147516,1714539096102,-2303.491,0.000124,2]
[325147517,1714539096112,-973.257,0.000124,2]
[325147518,1714539096122,-1260.514,0.000124,2]
[325147519,1714539096131,-542.0,0.000124,2]
[325147520,1714539096140,-1228.0,0.000124,2]
[325147521,1714539096149,-309.033,0.000124,2]
[325147522,1714539096161,-437.0,0.000124,2]
[325147523,1714539096171,-808.0,0.000124,2]
[325147524,1714539096184,-1866.376,0.000124,2]
[325147525,1714539096194,-610.0,0.000124,2]
[325147526,1714539096203,-151.013,0.000124,2]
[325147527,1714539096214,-2456.57,0.000124,2]
[325147528,1714539096224,-3143.267,0.000124,2]
[325147529,1714539096234,-421.012,0.000124,2]
[325147530,1714539096243,-1483.097,0.000124,2]
[325147531,1714539096252,-150.807,0.000124,2]
[325147532,1714539096265,-216.0,0.000124,2]
[325147533,1714539096275,-444.287,0.000124,2]
[325147534,1714539096284,-1647.783,0.000124,2]
[325147535,1714539096295,-1143.459,0.000124,2]
[325147536,1714539096304,-5899.0,0.000124,2]
[325147537,1714539096314,-2292.0,0.000124,2]
[325147538,1714539096323,-5737.0,0.000124,2]
[325147539,1714539096333,-21905.50221335,0.000124,2]
[325147540,1714539096406,-500.0,0.00011825,2]
[325147541,1714539096417,-258.02566619,0.000124,2]
[325147542,1714539096463,-202.183734,0.00012328,2]
[325147543,1714539096472,-2673.58916594,0.000124,2]
[325147544,1714539096986,-170.94453194,0.00010956,2]
[325147545,1714539096996,-500.0,0.00010958,2]
[325147546,1714539097005,-500.0,0.00010958,2]
[325147547,1714539097015,-500.0,0.00010958,2]
[325147548,1714539097025,-500.0,0.00010958,2]
[325147549,1714539097034,-500.0,0.00011232,2]
[325147550,1714539097045,-151.0,0.0001178,2]
[325147551,1714539097054,-151.0,0.0001178,2]
[325147552,1714539097064,-500.0,0.00011912,2]
[325147553,1714539097073,-70.91960475,0.00011996,2]
[325147554,1714539097680,-500.0,0.00010958,2]
[325147555,1714539097689,-429.08039525,0.00011996,2]
[325147556,1714539097699,-151.0,0.00012054,2]
[325147557,1714539097708,-151.0,0.00012328,2]
[325147558,1714539097718,-23.43569999,0.000124,2]
[325147560,1714539100838,-428.89734942,0.00010955,2]
[325147561,1714539100848,-468.07017232,0.00010958,2]
[325147562,1714539100857,-500.0,0.00010958,2]
[325147563,1714539100866,-500.0,0.00010958,2]
[325147564,1714539100875,-275.63857282,0.00010958,2]
[325147586,1714539495367,157.84,9.02e-05,2]
[325147589,1714539650975,367.23916379,9.02e-05,2]
[325147590,1714539652488,362.55391451,9.02e-05,2]
[325147591,1714539655154,1477.0419337,9.02e-05,2]
[325147592,1714539656709,288.56832451,9.02e-05,2]
[325147593,1714539658878,-3073.67737017,0.00010557,2]
[325147594,1714539658899,-481.48199999,0.00010558,2]
[325147595,1714539658922,-166.96379572,0.00010658,2]
[325147596,1714539663484,277.87683412,9.02e-05,2]
[325147597,1714539663513,3734.17899644,9.02e-05,2]
[325147598,1714539675345,106940.0,0.00025,120]
[325147599,1714539701468,265.82100356,0.00010723,2]
[325147600,1714539706258,-158.35899644,0.00010723,2]
[325147601,1714539706281,-3841.64100356,0.00010758,2]
[325147602,1714539708350,-4000.0,0.00010758,2]
[325147603,1714539708879,-4000.0,0.00010758,2]
[325147604,1714539709587,-1866.28049644,0.00010758,2]
[325147605,1714539709608,-2133.71950356,0.00010758,2]
[325147606,1714539711205,-4000.0,0.00010758,2]
[325147607,1714539714786,-155.0,0.00010757,2]
[325147608,1714539714807,-3845.0,0.00010758,2]
[325147609,1714539715519,-4000.0,0.00010758,2]
[325147610,1714539716976,-4000.0,0.00010758,2]
[325147611,1714539719734,-4000.0,0.00010758,2]
[325147612,1714539720354,-4000.0,0.00010758,2]
[325147615,1714539780331,-407.27595972,0.00010756,2]
[325147616,1714539780356,-3073.67737017,0.00010757,2]
[325147617,1714539780390,-399.42152301,0.00010758,2]
[325147618,1714539780415,-119.6251471,0.00010758,2]
[325147619,1714539781076,-4000.0,0.00010758,2]
[325147620,1714539782018,-4000.0,0.00010758,2]
[325147621,1714539783008,-4000.0,0.00010757,2]
[325147622,1714539790698,-389.07061271,0.00010755,2]
[325147623,1714539790718,-161.65037328,0.00010756,2]
[325147624,1714539790739,-1449.27901401,0.00010757,2]
[325147635,1714540031454,157.84,8.288e-05,2]
[325147637,1714540071438,-539.71422867,0.0001019,2]
[325147638,1714540071462,-155.0,0.0001019,2]
[325147639,1714540071484,-6305.28577133,0.0001019,2]
[325147641,1714540165508,792.0,9.951e-05,2]
[325147646,1714540231701,-407.27595972,0.00010155,2]
[325147647,1714540231711,-2332.48253606,0.00010156,2]
[325147648,1714540231816,-433.66532984,0.00010156,2]
[325147649,1714540231829,-307.52950427,0.00010156,2]
[325147650,1714540231839,-991.89134023,0.00010157,2]
[325147700,1714540237757,-219.67259069,0.00010157,2]
[325147701,1714540237767,-255.63107012,0.00010158,2]
[325147704,1714540237777,-14.86970679,0.00010159,2]
[325147712,1714540237872,-680.38979359,0.00010159,2]
[325147713,1714540237905,-1491.75255378,0.00010159,2]
[325147714,1714540237915,-155.0,0.00010159,2]
[325147715,1714540237927,-150.0,0.00010162,2]
[325147716,1714540237936,-62864.48223887,0.00010163,2]
[325147717,1714540237946,-9480.36,0.00010164,2]
[325147718,1714540237957,-273.39,0.00010202,2]
[325147719,1714540237967,-541.78,0.00010347,2]
[325147720,1714540237977,-20222.92491642,0.00010757,2]
[325147721,1714540237987,-155.49074858,0.00010758,2]
[325147722,1714540237996,-173.68616803,0.00010758,2]
[325147723,1714540238006,-3515.08425485,0.00010758,2]
[325147724,1714540238016,-65901.65534934,0.00010758,2]
[325147725,1714540238026,-1421.0087,0.00010758,2]
[325147726,1714540238035,-499.99,0.00010805,2]
[325147727,1714540238046,-167.25516408,0.00010858,2]
[325147728,1714540238056,-697.4248,0.00010858,2]
[325147729,1714540238067,-4617.20469871,0.00010946,2]
[325147730,1714540238077,-156.02604501,0.00010954,2]
[325147731,1714540238088,-410.20301213,0.00010956,2]
[325147732,1714540238098,-378.51268957,0.00010956,2]
[325147733,1714540238108,-306.71178674,0.00010956,2]
[325147734,1714540238118,-155.27994325,0.00010956,2]
[325147735,1714540238129,-155.15849906,0.00010956,2]
[325147736,1714540238139,-360.84372027,0.00010956,2]
[325147737,1714540238149,-1784.09815355,0.00010956,2]
[325147738,1714540238160,-344.86233602,0.00010956,2]
[325147739,1714540238170,-207.30045411,0.00010956,2]
[325147740,1714540238184,-201.16744693,0.00010956,2]
[325147741,1714540238194,-706.80422125,0.00010956,2]
[325147742,1714540238203,-193.62288176,0.00010956,2]
[325147743,1714540238214,-3420.98284176,0.00010956,2]
[325147744,1714540238224,-155.17377882,0.00010956,2]
[325147745,1714540238234,-155.42589098,0.00010956,2]
[325147746,1714540238244,-2184.47206436,0.00010956,2]
[325147747,1714540238255,-155.21281844,0.00010956,2]
[325147748,1714540238265,-199.79449087,0.00010956,2]
[325147749,1714540238275,-156.46812312,0.00010956,2]
[325147750,1714540238286,-441.94236054,0.00010956,2]
[325147751,1714540238295,-527.20292077,0.00010957,2]
[325147752,1714540238305,-638.96096778,0.00010958,2]
[325147753,1714540238315,-503.72153993,0.00010958,2]
[325147754,1714540238325,-500.0,0.00010958,2]
[325147755,1714540238335,-500.0,0.00010958,2]
[325147756,1714540238345,-500.0,0.00010958,2]
[325147757,1714540238354,-500.0,0.00010958,2]
[325147758,1714540238364,-500.0,0.00010958,2]
[325147759,1714540238374,-503.25883928,0.00010958,2]
[325147760,1714540238383,-500.0,0.00010958,2]
[325147762,1714540238393,-500.0,0.00010958,2]
[325147764,1714540238402,-500.0,0.00010958,2]
[325147766,1714540238411,-507.94040527,0.00010958,2]
[325147769,1714540238422,-501.03177542,0.00010958,2]
[325147772,1714540238431,-500.42242349,0.00010958,2]